bitfinex/quotes_ETHUSD_20240731
["timestamp","ask_amount","ask_price","bid_price","bid_amount"]
[1722447890396,2.3755,3327.0,3326.4,0.04370701]
[1722447890734,2.3755,3327.0,3326.5,0.04366413]
[1722447890938,0.1449158,3328.3,3327.4,3.00531]
[1722447891241,0.1449158,3328.3,3327.5,6.00521]
[1722447891436,0.1449158,3328.3,3327.6,3.55511]
[1722447891954,0.1449158,3328.3,3327.7,0.04319121]
[1722447892294,3.1495058,3328.3,3327.7,0.04319121]
[1722447892496,0.31495058,3328.2,3327.7,0.04319121]
[1722447892721,3.1495258,3328.3,3327.3,3.00543]
[1722447892922,3.1495258,3328.3,3327.8,0.04296057]
[1722447893136,3.1495258,3328.3,3327.4,3.0]
[1722447893337,3.1495258,3328.3,3327.9,0.04291773]
[1722447893557,3.1495258,3328.3,3327.3,3.00543]
[1722447893711,0.31495258,3328.2,3328.0,0.04287489]
[1722447893914,0.1449158,3328.3,3327.2,0.3017]
[1722447894148,0.1449158,3328.3,3328.1,0.04283205]
[1722447894300,0.1449158,3328.3,3327.8,0.55]
[1722447894499,0.1449158,3328.3,3328.2,0.04278922]
[1722447894699,0.1449158,3328.3,3327.8,0.55]
[1722447894962,0.1449158,3328.3,3328.2,0.04278922]
[1722447895240,0.1449158,3328.3,3327.7,0.55]
[1722447895438,0.1449158,3328.3,3327.4,5.67727]
[1722447895439,0.45984238,3328.3,3328.2,0.04196041]
[1722447895642,0.45984238,3328.3,3327.5,3.55518]
[1722447895857,0.45984238,3328.3,3328.2,0.04196041]
[1722447896058,0.45984238,3328.3,3327.5,3.55518]
[1722447896515,3.1494558,3328.3,3327.6,0.04077534]
[1722447896848,0.1449158,3328.3,3327.6,0.04077534]
[1722447897002,3.1494558,3328.3,3327.6,0.04077534]
[1722447897198,2.4036,3328.2,3327.6,0.10087124]
[1722447897429,2.65845158,3328.2,3327.6,0.04077534]
[1722447897741,3.00479,3328.1,3327.6,0.04077534]
[1722447898211,5.66314158,3328.2,3327.4,2.672]
[1722447898415,5.66307158,3328.2,3327.7,0.04073249]
[1722447898746,2.65845158,3328.2,3327.8,0.04068964]
[1722447898917,0.58079074,3328.1,3327.8,0.04068964]
[1722447899113,0.58079074,3328.1,3327.4,5.67734]
[1722447899374,2.65845158,3328.2,3327.9,0.0406468]
[1722447899641,2.65845158,3328.2,3327.4,2.672]
[1722447900149,0.1449158,3328.3,3327.5,0.59081819]
[1722447900349,0.1449158,3328.3,3327.5,3.59599819]
[1722447900517,0.1449158,3328.3,3327.5,0.04081819]
[1722447900518,3.1495158,3328.3,3327.5,0.04081819]
[1722447900928,0.1449158,3328.3,3327.5,0.1009152]
[1722447901119,0.1449158,3328.3,3327.7,3.00501]
[1722447901516,0.1449158,3328.3,3327.8,0.04068964]
[1722447901716,0.1449158,3328.3,3328.1,3.00465]
[1722447901927,0.1449158,3328.3,3328.2,0.55]
[1722447902255,0.1449158,3328.3,3328.2,0.03995665]
[1722447902556,0.1449158,3328.3,3328.0,3.55472]
[1722447902758,0.1449158,3328.3,3328.2,0.03995665]
[1722447902945,0.1449158,3328.3,3328.2,0.55]
[1722447903139,0.1449158,3328.3,3328.2,0.58995665]
[1722447903345,0.1449158,3328.3,3328.2,3.04457665]
[1722447903662,0.46227456,3330.3,3328.4,2.2786]
[1722447903844,3.00219,3330.9,3329.3,2.672]
[1722447904013,0.1449158,3331.6,3329.3,2.672]
[1722447904215,3.00271,3330.4,3329.4,0.58944282]
[1722447904416,3.00281,3330.3,3328.9,5.672]
[1722447904613,0.45954738,3331.6,3329.5,0.03940002]
[1722447904873,0.45954738,3331.6,3328.5,2.672]
[1722447904874,3.00344,3329.6,3328.6,3.0]
[1722447905172,3.00328,3329.7,3328.7,0.03974251]
[1722447905373,3.303688,3329.6,3328.7,0.03974251]
[1722447905555,3.303718,3329.6,3328.7,0.03974251]
[1722447905764,3.00364,3329.3,3328.7,0.03974251]
[1722447905943,3.00345,3329.5,3328.7,0.03974251]
[1722447906270,3.00364,3329.3,3328.7,0.03974251]
[1722447906423,0.600718,3329.2,3328.7,0.03974251]
[1722447906762,0.300328,3329.6,3328.7,0.03974251]
[1722447907056,3.00345,3329.5,3328.7,0.55]
[1722447907266,3.0036,3329.4,3328.8,0.03697452]
[1722447907446,3.0,3330.7,3328.8,3.04103452]
[1722447907655,3.00328,3329.7,3328.9,0.55]
[1722447907851,3.00316,3329.9,3328.9,0.5869317]
[1722447908249,3.00319,3329.8,3328.9,0.0369317]
[1722447908454,3.00313,3329.9,3328.9,3.0409117]
[1722447908655,3.00313,3329.9,3329.0,0.06007063]
[1722447908982,0.300313,3329.8,3329.1,0.03684607]
[1722447909128,3.00329,3329.7,3329.1,0.03684607]
[1722447909323,3.00284,3330.2,3329.1,3.00379]
[1722447909522,3.00284,3330.2,3329.2,0.55]
[1722447909740,3.00298,3330.1,3329.2,0.58680326]
[1722447909973,3.00284,3330.2,3329.2,0.03680326]
[1722447910139,3.15481544,3331.4,3329.2,0.03680326]
[1722447910140,3.00206,3331.1,3329.5,3.00344]
[1722447910477,3.00206,3331.1,3329.6,0.06006028]
[1722447910478,3.00225,3330.9,3329.6,0.06006028]
[1722447910691,3.00225,3330.9,3329.7,3.55326]
[1722447910969,3.00225,3330.9,3329.9,3.00301]
[1722447911174,3.00225,3330.9,3329.8,0.060056]
[1722447911175,0.300225,3330.8,3330.0,3.00293]
[1722447911328,10.47206,3331.1,3330.1,3.55283]
[1722447911519,7.47,3331.1,3330.2,3.06280859]
[1722447911719,7.47,3331.1,3330.3,0.06004855]
[1722447911990,10.47204,3331.1,3330.3,0.03633252]
[1722447912300,10.47204,3331.1,3329.3,10.29355]
[1722447912301,3.00255,3330.5,3330.4,0.03628974]
[1722447912650,3.00258,3330.5,3329.3,10.29363]
[1722447912959,3.00258,3330.5,3329.5,3.0034]
[1722447913166,1.047204,3331.0,3329.4,2.70871765]
[1722447913502,3.0026,3330.5,3329.6,0.03663205]
[1722447913681,0.30026,3330.4,3329.5,0.03667485]
[1722447913880,0.30026,3330.4,3329.6,3.0033]
[1722447914201,3.00269,3330.4,3329.7,0.03658925]
[1722447914406,1.047204,3331.0,3329.5,0.55]
[1722447914407,3.00241,3330.7,3329.5,0.55]
[1722447914545,1.047204,3331.0,3329.8,0.03654646]
[1722447914546,3.00277,3330.3,3329.8,0.03654646]
[1722447914752,3.00282,3330.2,3329.2,3.30539]
[1722447915098,3.00249,3330.6,3329.7,0.3017]
[1722447915262,0.300249,3330.5,3329.7,0.3017]
[1722447915466,3.0027,3330.4,3329.8,0.03654646]
[1722447916087,0.300249,3330.5,3329.8,0.03654646]
[1722447916411,3.00272,3330.4,3329.8,0.03654646]
[1722447916748,0.250249,3330.5,3329.8,0.03654646]
[1722447916952,0.250249,3330.5,3328.4,2.672]
[1722447916953,2.2737,3330.4,3328.3,2.3896]
[1722447917293,3.00321,3329.8,3329.2,0.3017]
[1722447917497,2.2737,3330.4,3329.2,0.3017]
[1722447917651,2.2737,3330.4,3328.3,2.3896]
[1722447917652,3.00359,3329.4,3329.3,0.03553015]
[1722447917994,3.00391,3329.0,3328.1,0.3017]
[1722447918259,3.00391,3329.0,3328.1,1.20003]
[1722447918433,3.00358,3329.4,3328.5,3.00435]
[1722447918565,3.00329,3329.7,3328.7,3.00411]
[1722447918764,6.00273,3330.3,3328.7,3.00411]
[1722447919024,3.0,3330.3,3328.8,0.03574422]
[1722447919317,3.0,3330.2,3328.9,3.00399]
[1722447919521,0.3,3330.1,3329.0,0.06007333]
[1722447919816,5.27638,3330.4,3329.2,3.00368]
[1722447919817,3.00269,3330.4,3329.2,3.00368]
[1722447920025,6.00542,3330.4,3329.3,3.06365415]
[1722447920183,3.00287,3330.2,3329.3,0.0955943]
[1722447920383,3.00292,3330.1,3329.3,0.0955943]
[1722447920580,1.047204,3331.0,3329.4,3.00352]
[1722447920581,3.00257,3330.5,3329.4,3.00352]
[1722447920913,3.00269,3330.4,3329.5,0.06006232]
[1722447921219,3.00293,3330.1,3329.6,0.03540175]
[1722447921515,3.00247,3330.6,3329.6,0.03540175]
[1722447921811,3.00256,3330.5,3329.6,3.03870175]
[1722447922067,0.600503,3330.4,3329.6,3.03870175]
[1722447922378,1.047204,3331.0,3329.7,3.00326]
[1722447922583,3.00246,3330.6,3329.8,0.55]
[1722447922930,3.00244,3330.7,3329.8,0.03531616]
[1722447923222,3.00244,3330.7,3329.8,0.58531616]
[1722447923407,3.00253,3330.6,3329.8,0.58531616]
[1722447923735,3.00297,3330.1,3329.8,0.03531616]
[1722447923894,3.303297,3330.0,3329.8,0.03531616]
[1722447924078,3.303297,3330.0,3329.1,0.3017]
[1722447924079,3.00335,3329.7,3329.1,0.3017]
[1722447924545,3.0034,3329.6,3329.2,0.03557296]
[1722447924974,3.0034,3329.6,3328.9,0.3017]
[1722447925177,3.0034,3329.6,3329.3,0.03536255]
[1722447925433,3.0034,3329.6,3328.9,0.36177324]
[1722447925595,3.0034,3329.6,3328.9,0.3017]
[1722447925814,3.0034,3329.6,3329.0,0.03549098]
[1722447926011,3.00329,3329.7,3329.0,0.03549098]
[1722447926416,3.00318,3329.8,3329.0,0.03549098]
[1722447926616,3.00311,3329.9,3329.1,0.36177018]
[1722447926797,3.00311,3329.9,3329.1,0.39721835]
[1722447927124,0.300297,3330.0,3329.1,3.40099835]
[1722447927125,3.00306,3330.0,3329.1,3.40099835]
[1722447927351,3.00256,3330.5,3329.1,0.33714817]
[1722447927627,7.47,3330.8,3329.1,0.03544817]
[1722447927628,3.00335,3329.7,3329.1,0.03544817]
[1722447927936,3.00352,3329.5,3328.8,2.4985]
[1722447928235,3.00319,3329.8,3329.2,0.03540536]
[1722447928382,0.300319,3329.8,3329.0,3.0039]
[1722447928730,3.00282,3330.2,3329.3,0.03535155]
[1722447928910,3.00288,3330.2,3329.4,0.03530874]
[1722447929115,3.00292,3330.1,3329.4,0.03530874]
[1722447929297,3.00288,3330.2,3329.4,0.03530874]
[1722447929508,3.00275,3330.3,3329.4,0.03530874]
[1722447929825,3.00264,3330.4,3329.5,0.36995683]
[1722447930007,3.00264,3330.4,3329.5,3.40865277]
[1722447930212,3.00264,3330.4,3329.5,0.40522277]
[1722447930579,10.47228,3330.8,3329.8,3.00312]
[1722447930783,10.47228,3330.8,3329.9,0.06005555]
[1722447930979,7.47,3330.8,3329.9,0.09519427]
[1722447931187,7.47,3330.8,3330.0,0.55]
[1722447931385,10.84695,3331.2,3330.2,3.00276]
[1722447931694,10.84695,3331.2,3330.3,0.03490714]
[1722447931899,2.33324315,3331.1,3330.3,0.03490714]
[1722447932101,2.33324315,3331.1,3330.3,3.00272]
[1722447932342,2.33324315,3331.1,3330.3,3.06276745]
[1722447932538,2.33324315,3331.1,3330.4,0.03472977]
[1722447932829,0.375,3331.2,3330.4,3.00258]
[1722447933044,0.375,3331.2,3330.5,3.55252]
[1722447933187,0.375,3331.2,3330.5,3.587227]
[1722447933937,0.375,3331.2,3330.5,0.034687]
[1722447934243,3.0021,3331.0,3329.8,3.00311]
[1722447934384,3.00206,3331.1,3330.6,0.03464422]
[1722447934586,3.00218,3331.0,3330.0,3.00293]
[1722447934785,3.37696,3331.2,3329.9,0.55]
[1722447934786,3.37692,3331.2,3330.7,0.03460145]
[1722447935006,3.00202,3331.1,3330.0,3.00295]
[1722447935333,0.375,3331.2,3330.2,3.00274]
[1722447935532,0.375,3331.2,3330.6,3.00245]
[1722447935682,0.375,3331.2,3330.5,3.00254]
[1722447935883,0.375,3331.2,3330.3,3.03746255]
[1722447935884,0.375,3331.2,3330.7,0.03460145]
[1722447936130,0.375,3331.2,3330.8,0.03455868]
[1722447936327,0.375,3331.2,3330.8,3.03675868]
[1722447936546,0.375,3331.2,3330.9,0.54575587]
[1722447936684,0.375,3331.2,3330.9,0.03451592]
[1722447937223,0.375,3331.2,3330.9,0.64455323]
[1722447937405,0.1449158,3331.6,3330.9,0.64455323]
[1722447938100,0.1449158,3331.6,3331.0,2.2971]
[1722447938101,0.05434342,3331.6,3331.0,2.2971]
[1722447938375,0.05434342,3331.6,3331.3,3.00181]
[1722447938587,0.05434342,3331.6,3331.4,0.850181]
[1722447938882,0.05434342,3331.6,3331.4,3.58590856]
[1722447939049,0.05434342,3331.6,3331.4,0.58417856]
[1722447939243,0.05434342,3331.6,3331.4,0.03417856]
[1722447939775,0.05434342,3331.6,3331.5,0.03413581]
[1722447940284,0.05434342,3331.6,3331.5,3.06167798]
[1722447940434,0.05434342,3331.6,3331.5,0.40033159]
[1722447940630,0.05434342,3331.6,3331.5,0.09416379]
[1722447941394,0.05434342,3331.6,3331.5,0.03413581]
[1722447941885,0.05434342,3331.6,3331.5,3.06167486]
[1722447942064,0.05434342,3331.6,3331.5,3.09526154]
[1722447942245,0.05434342,3331.6,3331.5,0.09361154]
[1722447942445,0.05434342,3331.6,3331.5,0.03358668]
[1722447943162,2.80554342,3332.0,3331.1,3.00194]
[1722447943488,5.26626,3332.8,3331.5,0.03358668]
[1722447943777,3.00104,3332.2,3331.6,0.03354393]
[1722447944073,3.00104,3332.2,3331.1,3.862271]
[1722447944286,3.00135,3331.9,3331.7,0.03350118]
[1722447944432,3.00135,3331.9,3331.1,0.860291]
[1722447944634,3.00135,3331.9,3331.2,0.3157391]
[1722447944880,3.00158,3331.6,3331.2,0.03371494]
[1722447945172,3.00138,3331.8,3331.2,0.03371494]
[1722447945373,3.0,3332.7,3331.3,0.03367218]
[1722447945374,3.00132,3331.9,3331.3,0.03367218]
[1722447945684,10.47033,3333.0,3331.4,3.00165]
[1722447945892,3.00095,3332.3,3331.4,3.00165]
[1722447946074,3.00095,3332.3,3331.5,0.33248445]
[1722447946250,3.00042,3332.9,3331.5,0.33248445]
[1722447946251,3.0009,3332.4,3331.5,0.33248445]
[1722447946438,3.0009,3332.4,3331.5,3.39415057]
[1722447946789,7.47,3333.0,3331.5,3.39415057]
[1722447946790,3.00057,3332.7,3331.8,3.00136]
[1722447946954,3.00044,3332.9,3331.9,3.06127806]
[1722447947162,3.600557,3332.8,3332.0,0.03207281]
[1722447947877,3.00039,3332.9,3332.0,3.03324281]
[1722447948042,3.00039,3332.9,3332.0,0.03207281]
[1722447948237,3.00039,3332.9,3331.9,3.06129809]
[1722447948566,3.00039,3332.9,3332.0,0.03201794]
[1722447948567,3.00048,3332.8,3332.0,0.03201794]
[1722447949682,3.0003,3333.0,3332.0,0.03201794]
[1722447949834,3.0003,3333.0,3332.0,3.09320607]
[1722447949835,3.00041,3332.9,3332.0,3.09320607]
[1722447950034,3.00048,3332.8,3332.0,0.09203607]
[1722447950942,3.00048,3332.8,3332.0,0.03201794]
[1722447951181,3.00038,3333.0,3331.5,0.300165]
[1722447951400,3.00107,3332.2,3332.1,0.03173928]
[1722447951539,3.00107,3332.2,3331.2,3.00191]
[1722447951744,3.00107,3332.2,3331.3,0.03208123]
[1722447951745,3.00123,3332.0,3331.3,0.03208123]
[1722447951955,3.00107,3332.2,3331.3,0.06002705]
[1722447951956,3.00104,3332.2,3331.3,0.06002705]
[1722447952159,3.00094,3332.3,3331.4,0.33727717]
[1722447952382,3.00094,3332.3,3331.5,0.06002687]
[1722447952582,3.00085,3332.4,3331.5,3.09270258]
[1722447952882,3.00075,3332.5,3331.6,3.00154]
[1722447953098,3.00067,3332.6,3331.7,3.06148198]
[1722447953401,3.00075,3332.5,3331.7,0.40023496]
[1722447953554,2.66376,3332.8,3331.7,0.40023496]
[1722447953555,3.00061,3332.7,3331.8,0.06002198]
[1722447953758,3.00061,3332.7,3331.9,0.030968]
[1722447953759,3.00071,3332.6,3331.9,0.030968]
[1722447953967,3.00061,3332.7,3331.9,0.030968]
[1722447954187,0.24216,3332.8,3331.9,0.030968]
[1722447954388,3.00087,3332.4,3331.5,3.00163]
[1722447954701,3.00087,3332.4,3331.3,3.00181]
[1722447954702,2.4374,3333.3,3331.7,2.3323]
[1722447954850,3.00044,3332.9,3331.8,0.55]
[1722447955045,3.00062,3332.7,3331.8,3.58238074]
[1722447955253,3.00075,3332.5,3331.8,0.58101074]
[1722447955454,3.00062,3332.7,3331.8,0.65250911]
[1722447955691,3.00062,3332.7,3331.8,3.65383911]
[1722447956987,3.00066,3332.6,3331.8,0.65250911]
[1722447957199,3.00075,3332.5,3331.8,0.03101074]
[1722447957420,3.00042,3332.9,3332.0,3.00116]
[1722447957720,2.4374,3333.3,3331.8,0.09102972]
[1722447957721,3.00049,3332.8,3331.9,3.00127]
[1722447957912,3.00036,3333.0,3332.1,0.03211403]
[1722447958133,3.00036,3333.0,3332.1,3.0011]
[1722447958284,3.00036,3333.0,3332.2,0.06001305]
[1722447958487,3.00039,3332.9,3332.2,0.43233158]
[1722447958799,3.00032,3333.0,3332.2,0.43233158]
[1722447959513,3.00016,3333.2,3332.2,0.43233158]
[1722447959722,3.00021,3333.1,3332.3,3.00091]
[1722447960012,3.00021,3333.1,3332.4,0.03197669]
[1722447960213,3.00039,3332.9,3332.4,0.03197669]
[1722447960414,3.00062,3332.7,3331.7,2.3323]
[1722447960717,3.00136,3331.9,3331.2,2.4522]
[1722447961027,3.00136,3331.9,3330.7,0.3017]
[1722447961028,3.00115,3332.1,3330.8,5.45447]
[1722447961170,3.00086,3332.4,3330.8,5.45447]
[1722447961365,7.47,3332.7,3330.8,2.4522]
[1722447961615,3.0016,3331.6,3330.9,0.24522]
[1722447961969,3.00175,3331.4,3330.9,0.24522]
[1722447962216,3.002,3331.2,3330.2,2.4321]
[1722447962422,3.0022,3330.9,3330.2,2.4321]
[1722447962571,3.00228,3330.8,3329.8,2.4321]
[1722447963283,3.00264,3330.4,3329.8,2.4321]
[1722447963489,3.00273,3330.3,3329.9,0.05387876]
[1722447963690,3.00255,3330.5,3329.9,0.05387876]
[1722447963892,3.00258,3330.5,3329.9,0.05387876]
[1722447964089,3.00255,3330.5,3329.4,0.06006028]
[1722447964303,3.0027,3330.4,3330.0,0.0391262]
[1722447964475,3.0027,3330.4,3329.5,0.55139603]
[1722447964680,2.3497,3331.3,3330.1,0.03906786]
[1722447964892,3.00315,3329.9,3329.3,2.4503]
[1722447965225,3.00315,3329.9,3329.4,0.03618665]
[1722447965408,3.00222,3330.9,3329.4,0.03618665]
[1722447965409,3.00324,3329.8,3329.4,0.03618665]
[1722447965571,3.00343,3329.6,3329.4,0.03618665]
[1722447965777,3.00336,3329.7,3328.8,2.4642]
[1722447965972,3.00338,3329.6,3329.5,0.03613315]
[1722447966174,3.00338,3329.6,3328.9,0.24642]
[1722447966423,3.00311,3329.9,3329.0,0.03640069]
[1722447966627,3.00335,3329.7,3329.0,0.03640069]
[1722447967344,3.00364,3329.3,3329.0,0.03640069]
[1722447967703,3.00372,3329.2,3328.3,2.48468306]
[1722447967906,3.00372,3329.2,3329.1,0.03634718]
[1722447968257,0.300335,3329.7,3327.7,3.00507]
[1722447968258,3.0039,3329.0,3327.7,3.00507]
[1722447968400,3.00336,3329.6,3327.6,2.3187]
[1722447968401,3.004,3328.9,3327.6,2.3187]
[1722447968605,3.00387,3329.1,3327.8,0.03704313]
[1722447968804,3.00445,3328.4,3327.7,0.26366716]
[1722447969005,3.00445,3328.4,3327.9,0.03668303]
[1722447969245,3.00445,3328.4,3327.4,3.09696887]
[1722447969246,3.0048,3328.0,3327.4,3.09696887]
[1722447969437,3.00491,3327.9,3327.4,3.09696887]
[1722447969732,3.00491,3327.9,3327.4,3.40666576]
[1722447969936,5.3107,3329.2,3327.6,3.0051]
[1722447970139,3.00288,3330.2,3327.4,3.40666576]
[1722447970140,3.00386,3329.1,3328.0,3.0048]
[1722447970375,3.00386,3329.1,3328.1,0.06008906]
[1722447970651,3.00365,3329.3,3328.3,3.00453]
[1722447970804,3.00365,3329.3,3328.4,0.300453]
[1722447971009,3.00391,3329.0,3328.4,0.300453]
[1722447971221,3.00391,3329.0,3328.0,2.3628]
[1722447971222,3.004,3328.9,3328.0,2.3628]
[1722447971511,3.00414,3328.8,3328.0,2.3628]
[1722447971750,3.00305,3330.0,3326.9,3.541]
[1722447971751,3.00479,3328.1,3327.4,3.72107287]
[1722447971953,2.3579,3329.0,3327.4,3.41137598]
[1722447971954,3.0044,3328.5,3327.4,3.41137598]
[1722447972139,2.3579,3329.0,3327.4,3.09696887]
[1722447972140,3.00472,3328.1,3327.4,3.09696887]
[1722447972755,3.00463,3328.2,3327.4,3.09696887]
[1722447972920,3.00414,3328.8,3327.4,3.09696887]
[1722447973264,3.00479,3328.1,3327.4,3.09696887]
[1722447973433,3.300414,3328.7,3327.4,3.09696887]
[1722447973434,3.00434,3328.6,3327.4,3.09696887]
[1722447973636,0.300414,3328.7,3327.6,3.00508]
[1722447973823,0.300414,3328.7,3327.4,3.09696887]
[1722447974023,3.00417,3328.7,3327.4,3.09696887]
[1722447974274,3.0041,3328.8,3327.4,3.09696887]
[1722447974479,3.00414,3328.8,3327.4,3.09696887]
[1722447974762,3.0,3329.1,3327.4,3.09696887]
[1722447974763,3.00518,3327.6,3327.4,3.09696887]
[1722447974995,0.300518,3327.6,3325.7,0.05212956]
[1722447975163,3.00568,3327.1,3326.0,3.00659]
[1722447975362,0.300518,3327.6,3326.3,3.00633]
[1722447975550,3.00495,3327.9,3326.4,2.59955467]
[1722447975744,5.43865,3328.5,3326.4,2.59955467]
[1722447975745,3.00482,3328.0,3327.0,3.0057]
[1722447975986,3.00482,3328.0,3327.1,3.00561]
[1722447976161,2.4343,3328.5,3327.1,0.11188428]
[1722447976162,5.43873,3328.5,3327.1,0.11188428]
[1722447976358,3.00473,3328.1,3327.1,0.05177496]
[1722447976567,3.00508,3327.7,3326.4,3.00622]
[1722447976818,3.00504,3327.8,3326.7,3.00597]
[1722447976947,3.00504,3327.8,3326.8,3.55588]
[1722447977296,3.00539,3327.4,3326.9,0.05193571]
[1722447977465,0.300473,3328.0,3326.9,0.05193571]
[1722447977466,3.00545,3327.3,3326.9,0.05193571]
[1722447977793,3.00545,3327.3,3326.3,3.00633]
[1722447977993,3.00526,3327.5,3326.4,0.05233765]
[1722447978148,3.00519,3327.6,3326.4,0.11245585]
[1722447978350,3.0054,3327.4,3326.4,0.11245585]
[1722447978612,3.00531,3327.5,3326.4,0.11245585]
[1722447978798,3.00557,3327.2,3326.4,0.05233765]
[1722447979097,3.00562,3327.1,3326.4,0.05233765]
[1722447979265,3.300473,3328.0,3326.3,3.00632]
[1722447979266,3.00531,3327.5,3326.3,3.00632]
[1722447979455,3.305841,3327.5,3326.5,0.05225725]
[1722447979654,0.300531,3327.5,3326.6,3.00606]
[1722447979849,3.0,3327.7,3326.6,3.05823686]
[1722447980167,3.305303,3328.0,3326.7,3.06608732]
[1722447980354,0.300473,3328.0,3326.8,0.66212775]
[1722447980551,3.00459,3328.3,3327.2,3.00547]
[1722447980798,3.00471,3328.2,3327.3,0.05161424]
[1722447981116,7.47,3328.4,3327.3,3.11714709]
[1722447981265,7.47,3328.4,3327.6,3.00516]
[1722447981602,7.47,3328.4,3327.4,3.00534]
[1722447981903,7.47,3328.4,3327.5,3.00525]
[1722447981904,10.47445,3328.4,3327.5,3.00525]
[1722447982253,3.00463,3328.2,3327.3,3.00541]
[1722447982480,3.00463,3328.2,3327.4,0.06010033]
[1722447982972,3.00472,3328.1,3326.9,3.00576]
[1722447983154,3.00472,3328.1,3326.6,2.4563]
[1722447983155,3.00486,3328.0,3327.0,0.935746]
[1722447983357,3.00494,3327.9,3327.0,0.55]
[1722447983959,3.00517,3327.6,3326.6,2.4563]
[1722447984186,3.0054,3327.4,3326.4,3.306882]
[1722447984500,3.00553,3327.2,3326.4,0.300632]
[1722447985223,0.601093,3327.2,3326.0,12.60431]
[1722447985505,3.00564,3327.1,3326.0,5.31431]
[1722447985711,3.0058,3326.9,3326.0,2.3077]
[1722447986013,3.00589,3326.8,3325.9,3.0067]
[1722447986359,3.00589,3326.8,3325.8,0.05213125]
[1722447986719,3.00572,3327.0,3325.9,0.30589413]
[1722447987020,3.0058,3326.9,3325.9,0.30589413]
[1722447987218,3.00589,3326.8,3325.9,0.30589413]
[1722447987401,3.0058,3326.9,3325.8,3.05889125]
[1722447987718,3.00598,3326.7,3325.9,0.55]
[1722447988259,3.00607,3326.6,3325.8,0.55]
[1722447988467,3.00607,3326.6,3325.6,3.32153672]
[1722447988468,3.00628,3326.4,3325.7,0.55]
[1722447988798,3.00631,3326.4,3325.4,0.05213835]
[1722447988999,3.306938,3326.4,3325.3,3.00717]
[1722447989290,3.0065,3326.2,3324.9,6.01513]
[1722447989493,0.300628,3326.4,3324.9,6.01513]
[1722447989494,3.00662,3326.0,3324.9,3.00753]
[1722447989697,10.47585,3326.9,3324.8,2.4695]
[1722447989698,3.00704,3325.6,3324.8,2.4695]
[1722447989861,3.0067,3326.0,3324.9,0.06014956]
[1722447990067,3.0068,3325.8,3324.9,0.06014956]
[1722447990295,3.0069,3325.7,3324.8,3.00762]
[1722447990459,3.0067,3325.9,3325.0,0.04322444]
[1722447990667,9.9268,3326.4,3324.9,0.04328882]
[1722447991031,3.00731,3325.3,3324.0,3.00838]
[1722447991310,3.00675,3325.9,3324.7,3.00775]
[1722447991477,3.00675,3325.9,3324.9,3.00759]
[1722447991478,0.300675,3325.8,3324.9,3.00759]
[1722447991676,0.300675,3325.8,3324.9,3.00752]
[1722447991925,0.300675,3325.8,3325.0,0.04714852]
[1722447992134,3.00694,3325.7,3325.0,0.04714852]
[1722447992284,6.0139,3325.7,3324.7,0.300775]
[1722447992458,3.00703,3325.6,3325.1,0.047077]
[1722447992661,2.4568,3326.4,3324.7,0.36092299]
[1722447992919,7.47,3327.1,3325.5,3.00706]
[1722447992920,3.00619,3326.5,3325.5,3.00706]
[1722447993139,7.47,3327.1,3324.9,3.0076]
[1722447993140,9.9255,3327.1,3325.6,0.61013855]
[1722447993272,3.00603,3326.7,3325.7,3.0669597]
[1722447993628,3.00607,3326.6,3325.8,0.0466223]
[1722447993845,3.00625,3326.4,3325.8,0.0466223]
[1722447994032,3.00625,3326.4,3325.6,0.55]
[1722447994343,3.00625,3326.4,3325.9,0.04655081]
[1722447994539,3.00635,3326.3,3325.5,2.36483034]
[1722447994854,3.00644,3326.2,3325.6,0.0467653]
[1722447995149,0.601269,3326.2,3325.6,0.0467653]
[1722447995443,3.00676,3325.9,3324.9,5.27685]
[1722447995740,3.0062,3326.5,3325.7,0.05228804]
[1722447995950,3.00665,3326.0,3324.9,2.2693]
[1722447996162,3.0064,3326.3,3325.2,3.00725]
[1722447996447,3.00644,3326.2,3325.3,3.05980013]
[1722447996604,0.601284,3326.2,3325.3,3.11994184]
[1722447996811,3.306677,3326.6,3325.7,3.00688]
[1722447997149,3.00617,3326.5,3325.8,0.05221276]
[1722447997307,0.300607,3326.6,3325.8,0.05221276]
[1722447997487,0.300607,3326.6,3325.6,3.00692]
[1722447997691,0.300607,3326.6,3325.5,3.00703]
[1722447997692,3.00632,3326.4,3325.5,3.00703]
[1722447997887,3.00632,3326.4,3325.7,0.0522932]
[1722447998142,3.00622,3326.5,3325.6,0.60237363]
[1722447998351,3.00632,3326.4,3325.8,0.05221276]
[1722447998644,3.00632,3326.4,3325.9,0.05213234]
[1722447998792,0.300607,3326.6,3325.9,0.05213234]
[1722447998992,3.00641,3326.3,3325.3,3.00719]
[1722447999230,3.00641,3326.3,3325.4,3.66981012]
[1722447999553,3.0064,3326.3,3325.4,0.66267012]
[1722448000051,3.0065,3326.2,3325.4,0.05253452]
[1722448000200,3.30719,3326.1,3325.4,0.05253452]
[1722448000398,3.00671,3325.9,3325.0,3.00751]
[1722448000603,3.00654,3326.1,3325.1,3.6102217]
[1722448000944,6.01278,3326.3,3325.1,3.6101617]
[1722448001150,3.00645,3326.2,3325.3,3.00724]
[1722448001353,3.607733,3326.2,3325.3,3.00724]
[1722448001554,3.00653,3326.1,3325.4,0.0526377]
[1722448001850,6.01313,3326.1,3325.2,3.00732]
[1722448002058,3.00666,3326.0,3325.1,0.55]
[1722448002198,0.601283,3326.2,3324.9,5.27682]
[1722448002199,3.00702,3325.6,3324.9,2.2693]
[1722448002399,3.00716,3325.4,3325.0,0.05296469]
[1722448002716,3.00725,3325.3,3324.3,5.3719]
[1722448002917,3.0074,3325.2,3325.1,0.05288423]
[1722448003098,3.0074,3325.2,3324.3,5.37194]
[1722448003446,3.0074,3325.2,3324.0,3.00838]
[1722448003447,3.00752,3325.0,3324.4,0.04275807]
[1722448003650,3.308312,3325.0,3324.4,0.04275807]
[1722448003797,3.308312,3325.0,3324.1,6.01658]